fUST/lending_fUST_20240603
["ID","MTS","AMOUNT","RATE_DAILY","PERIOD"]
[328462498,1717418847415,-151.0,0.00027397,2]
[328462499,1717418847435,-175.456052,0.00027397,2]
[328462500,1717418847459,-151.0,0.00027481,2]
[328462501,1717418847478,-155.149692,0.00027481,2]
[328462502,1717418847497,-634.46457136,0.00027505,2]
[328462503,1717418847516,-634.46457136,0.00027561,2]
[328462504,1717418847536,-151.0,0.00027597,7]
[328462505,1717418847558,-151.0,0.000276,2]
[328462506,1717418847577,-151.0,0.000276,2]
[328462507,1717418847596,-151.0,0.000276,2]
[328462508,1717418847617,-677.6,0.000276,3]
[328462509,1717418847636,-677.6,0.000276,3]
[328462510,1717418847657,-677.6,0.000276,3]
[328462511,1717418847678,-677.6,0.000276,3]
[328462512,1717418847698,-677.6,0.000276,3]
[328462513,1717418847720,-677.6,0.000276,3]
[328462514,1717418847743,-677.6,0.000276,3]
[328462515,1717418847763,-677.6,0.000276,3]
[328462516,1717418847782,-677.6,0.000276,3]
[328462517,1717418847806,-677.6,0.000276,3]
[328462518,1717418847930,-677.6,0.000276,3]
[328462519,1717418847952,-677.6,0.000276,3]
[328462520,1717418847972,-677.6,0.000276,3]
[328462521,1717418847992,-677.6,0.000276,3]
[328462522,1717418848012,-677.6,0.000276,3]
[328462523,1717418848032,-677.6,0.000276,3]
[328462524,1717418848055,-677.6,0.000276,3]
[328462525,1717418848075,-677.6,0.000276,3]
[328462526,1717418848095,-677.6,0.000276,3]
[328462527,1717418848116,-677.6,0.000276,3]
[328462528,1717418848138,-151.0,0.000276,2]
[328462529,1717418848158,-600.0,0.00027618,2]
[328462530,1717418848177,-634.46457136,0.00027629,2]
[328462531,1717418848198,-153.12327169,0.00027648,2]
[328462532,1717418848218,-634.46457136,0.00027684,2]
[328462533,1717418848239,-151.0,0.00027716,2]
[328462534,1717418848261,-88888.0,0.000278,3]
[328462535,1717418848281,-151.0,0.000278,2]
[328462536,1717418848303,-634.46457136,0.00027814,2]
[328462537,1717418848326,-151.0,0.000279,2]
[328462538,1717418848346,-600.0,0.00027906,2]
[328462539,1717418848366,-634.46457136,0.00027909,2]
[328462540,1717418848385,-151.0,0.00027933,2]
[328462541,1717418848405,-151.0,0.00027936,2]
[328462542,1717418848425,-634.46457136,0.00027979,2]
[328462543,1717418848445,-160.25575119,0.00027996,2]
[328462544,1717418848464,-154.9690062,0.00028,2]
[328462545,1717418848483,-18231.14895691,0.00028,2]
[328462546,1717418848503,-481.85172394,0.00028,2]
[328462547,1717418848523,-1000.39986241,0.00028,2]
[328462548,1717418848543,-487.02876458,0.00028,2]
[328462549,1717418848562,-634.46457136,0.00028025,2]
[328462550,1717418848582,-153.74860022,0.00028048,2]
[328462551,1717418848601,-634.46457136,0.00028152,2]
[328462552,1717418848620,-791.72638351,0.00028174,2]
[328462553,1717418848640,-192.33265121,0.00028174,2]
[328462554,1717418848659,-155.85682392,0.00028174,2]
[328462555,1717418848678,-547.21107661,0.00028174,2]
[328462556,1717418848698,-1902.80423468,0.00028175,2]
[328462557,1717418848718,-6623.10925017,0.00028175,2]
[328462558,1717418848738,-457.17016607,0.00028176,2]
[328462559,1717418848758,-12166.54340809,0.00028176,2]
[328462560,1717418848777,-604.07442376,0.00028176,2]
[328462561,1717418848797,-762.0201281,0.00028176,2]
[328462562,1717418848816,-225984.03375002,0.00028176,2]
[328462563,1717418848835,-151.0,0.00028183,7]
[328462564,1717418848854,-151.0,0.00028183,7]
[328462565,1717418848874,-1062.86898591,0.00028194,2]
[328462566,1717418848893,-634.46457136,0.00028368,2]
[328462567,1717418848912,-634.46457136,0.00028419,2]
[328462568,1717418848931,-634.46457136,0.00028529,2]
[328462569,1717418848950,-153.74860022,0.0002853,2]
[328462570,1717418848968,-634.46457136,0.00028568,2]
[328462571,1717418848988,-677.6,0.000286,3]
[328462572,1717418849007,-677.6,0.000286,3]
[328462573,1717418849029,-677.6,0.000286,3]
[328462574,1717418849050,-677.6,0.000286,3]
[328462575,1717418849069,-677.6,0.000286,3]
[328462576,1717418849088,-677.6,0.000286,3]
[328462577,1717418849107,-677.6,0.000286,3]
[328462578,1717418849127,-677.6,0.000286,3]
[328462579,1717418849146,-677.6,0.000286,3]
[328462580,1717418849166,-677.6,0.000286,3]
[328462581,1717418849185,-677.6,0.000286,3]
[328462582,1717418849204,-677.6,0.000286,3]
[328462583,1717418849223,-677.6,0.000286,3]
[328462584,1717418849248,-677.6,0.000286,3]
[328462585,1717418849267,-677.6,0.000286,3]
[328462586,1717418849287,-677.6,0.000286,3]
[328462587,1717418849309,-677.6,0.000286,3]
[328462588,1717418849330,-677.6,0.000286,3]
[328462589,1717418849352,-677.6,0.000286,3]
[328462590,1717418849371,-677.6,0.000286,3]
[328462591,1717418849397,-634.46457136,0.00028618,2]
[328462592,1717418849416,-160.0,0.000287,2]
[328462593,1717418849435,-283.0,0.000287,2]
[328462594,1717418849457,-4052.16876055,0.00028768,2]
[328462595,1717418849476,-188.83639177,0.00028768,2]
[328462596,1717418849496,-151.0,0.00028769,7]
[328462597,1717418849515,-151.0,0.00028769,7]
[328462598,1717418849534,-189448.15454576,0.0002877,2]
[328462599,1717418849557,-25.0,0.00028782,120]
[328462600,1717418849576,-634.46457136,0.00028809,2]
[328462601,1717418849595,-200.0,0.0002882,120]
[328462602,1717418849615,-634.46457136,0.00028821,2]
[328462603,1717418849634,-153.12327169,0.00028877,2]
[328462604,1717418849653,-634.46457136,0.0002889,2]
[328462605,1717418849673,-162.8080328,0.000289,2]
[328462606,1717418849692,-634.46457136,0.0002897,2]
[328462607,1717418849711,-78819.79910607,0.0002899,2]
[328462608,1717418849833,-292.89644429,0.00027375,2]
[328462609,1717418849853,-292.89644429,0.0002744,2]
[328462610,1717418849873,-292.89644429,0.00027632,2]
[328462611,1717418849893,-292.89644429,0.00027668,2]
[328462612,1717418849914,-292.89644429,0.00027939,2]
[328462613,1717418849934,-292.89644429,0.00028006,2]
[328462614,1717418849955,-292.89644429,0.00028072,2]
[328462615,1717418849974,-100180.20089393,0.0002899,2]
[328462616,1717418849993,-1416.58362405,0.00028999,4]
[328462617,1717418850012,-847.37085573,0.00029,2]
[328462618,1717418850031,-190.16884811,0.00029,2]
[328462619,1717418850053,-170.43808773,0.00029,30]
[328462620,1717418850072,-4767.0,0.00029,2]
[328462621,1717418850091,-3961.27,0.00029,14]
[328462622,1717418850110,-3272.53209042,0.00029,2]
[328462623,1717418850142,-292.89644429,0.00028195,2]
[328462624,1717418850162,-46101.46790958,0.00029,2]
[328462625,1717418850181,-161.1722808,0.00029,2]
[328462626,1717418850201,-311294.84290533,0.00029,30]
[328462627,1717418850232,-292.89644429,0.0002829,2]
[328462628,1717418850256,-662516.43826571,0.00029,30]
[328462629,1717418852096,-12847.23,0.0002779,3]
[328462630,1717418852119,-2273.71744983,0.00028176,7]
[328462631,1717418852140,-292.89644429,0.00028547,2]
[328462632,1717418852160,-292.89644429,0.00028718,2]
[328462633,1717418852180,-157554.17793159,0.00029,30]
[328462690,1717419038598,-276.88994467,0.00023809,2]
[328462697,1717419038649,-223.11005533,0.00023809,2]
[328462699,1717419038658,-500.0,0.00023809,2]
[328462701,1717419038668,-500.0,0.00023809,2]
[328462703,1717419038677,-500.0,0.0002381,2]
[328462705,1717419038686,-500.0,0.0002381,2]
[328462707,1717419038696,-500.0,0.0002381,2]
[328462709,1717419038705,-333.84,0.00024084,2]
[328462711,1717419038714,-166.666666,0.00026,2]
[328462713,1717419038723,-212.7243,0.00026549,2]
[328462714,1717419038732,-153.1232717,0.00027283,2]
[328462717,1717419038742,-154.92253873,0.00028,2]
[328462718,1717419038751,-18231.14895691,0.00028,2]
[328462720,1717419038761,-253.74198634,0.00028,2]
[328462722,1717419038770,-153.1232717,0.00028611,2]
[328462726,1717419038780,-153.1232717,0.00028841,2]
[328462728,1717419038789,-153.1232717,0.00028935,2]
[328462730,1717419038799,-500.0,0.00028989,2]
[328462732,1717419038809,-10706.02,0.0002899,3]
[328462733,1717419038818,-208.75177812,0.00028998,2]
[328462736,1717419038828,-27677.80008446,0.00028998,2]
[328462737,1717419038837,-1454.38608714,0.00028998,10]
[328462740,1717419038846,-338.49399864,0.00028999,2]
[328462741,1717419038856,-500.0,0.00028999,2]
[328462744,1717419038865,-500.0,0.00028999,2]
[328462745,1717419038874,-458.23216771,0.00028999,2]
[328462747,1717419038884,-327.44834771,0.00028999,2]
[328462749,1717419038893,-1136.85872491,0.00029,7]
[328462751,1717419038902,-2187.9402362,0.00029,7]
[328462754,1717419038911,-117462.669445,0.00029,30]
[328462756,1717419038923,-27959.65274819,0.00029,30]
[328462758,1717419038935,-395.33000797,0.00029,30]
[328462760,1717419038946,-1146.37483115,0.00029,30]
[328462762,1717419038957,-998.36004245,0.00029,30]
[328462765,1717419038968,-1059.9589855,0.00029,30]
[328462919,1717419041666,-500.0,0.0002381,2]
[328462921,1717419041676,-2761.15788286,0.00029,30]
[328462923,1717419041687,-19360.74721241,0.00029,30]
[328462925,1717419041701,-49676.23038787,0.00029,30]
[328462928,1717419041712,-7642.74018423,0.00029,30]
[328462930,1717419041723,-500.71854982,0.00029,30]
[328462932,1717419041735,-17499.86744044,0.00029,30]
[328463330,1717419045438,-14186.148006,0.00029,30]
[328463333,1717419045452,-330.29329238,0.00029,30]
[328463336,1717419045463,-7356.0895259,0.00029,30]
[328463736,1717419049011,-910.69670762,0.0002899,3]
[328463738,1717419049022,-2192.34403811,0.0002899,3]
[328464009,1717420179027,1098.25763878,0.00015,2]
[328464018,1717420235129,-212.7243,0.00023808,2]
[328464019,1717420235141,-1454.38608714,0.00023808,10]
[328464021,1717420235151,-500.0,0.00023809,2]
[328464022,1717420235162,-500.0,0.00023809,2]
[328464023,1717420235171,-500.0,0.00023809,2]
[328464024,1717420235181,-500.0,0.00023809,2]
[328464025,1717420235190,-500.0,0.00023809,2]
[328464026,1717420235200,-500.0,0.0002381,2]
[328464027,1717420235209,-500.0,0.0002381,2]
[328464028,1717420235219,-500.0,0.00024083,2]
[328464029,1717420235228,-878.6560834,0.00024324,2]
[328464030,1717420235238,-338.47619245,0.00024325,2]
[328464031,1717420235248,-355.55,0.00024357,2]
[328464032,1717420235258,-1413.38329478,0.00025506,2]
[328464033,1717420235267,-1413.38329477,0.00025575,2]
[328464034,1717420235276,-4053.1,0.00025597,3]
[328464035,1717420235285,-7728.99,0.00025597,3]
[328464036,1717420235295,-500.0,0.00025604,2]
[328464037,1717420235305,-500.0,0.00025604,2]
[328464038,1717420235313,-608.37,0.00025604,2]
[328464039,1717420235322,-500.0,0.00025605,2]
[328464040,1717420235332,-500.0,0.00025605,2]
[328464041,1717420235341,-500.0,0.00025605,2]
[328464042,1717420235351,-500.0,0.00025605,2]
[328464043,1717420235360,-500.0,0.00025605,2]
[328464044,1717420235369,-7264.29425781,0.00025605,2]
[328464045,1717420235378,-1099.5217014,0.00025605,2]
[328464046,1717420235389,-500.0,0.00025606,2]
[328464047,1717420235398,-500.0,0.00025606,2]
[328464048,1717420235407,-500.0,0.00025606,2]
[328464049,1717420235416,-566.67,0.00025606,2]
[328464050,1717420235424,-500.0,0.00025606,2]
[328464051,1717420235434,-500.0,0.00025606,2]
[328464052,1717420235444,-500.0,0.00025606,2]
[328464053,1717420235453,-500.0,0.00025606,2]
[328464054,1717420235463,-417.1907687,0.00025606,2]
[328464086,1717420238276,-82.8092313,0.00025606,2]
[328464088,1717420238287,-500.0,0.00025606,2]
[328464090,1717420238296,-500.0,0.00025606,2]
[328464091,1717420238305,-500.0,0.00025606,2]
[328464093,1717420238315,-500.0,0.00025606,2]
[328464095,1717420238324,-500.0,0.00025606,2]
[328464097,1717420238332,-500.0,0.00025606,2]
[328464099,1717420238341,-500.0,0.00025606,2]
[328464101,1717420238350,-500.0,0.00025606,2]
[328464103,1717420238359,-500.0,0.00025606,2]
[328464105,1717420238367,-500.0,0.00025606,2]
[328464107,1717420238376,-500.0,0.00025606,2]
[328464108,1717420238385,-500.0,0.00025606,2]
[328464110,1717420238395,-500.0,0.00025606,2]
[328464112,1717420238404,-500.0,0.00025606,2]
[328464114,1717420238413,-500.0,0.00025606,2]
[328464116,1717420238422,-540.8,0.00025606,2]
[328464118,1717420238431,-500.0,0.00025606,2]
[328464121,1717420238439,-516.48030854,0.00025606,2]
[328464123,1717420238448,-500.0,0.00025606,2]
[328464125,1717420238458,-517.89194588,0.00025606,2]
[328464127,1717420238467,-500.0,0.00025606,2]
[328464128,1717420238476,-601.64,0.00025606,2]
[328464130,1717420238486,-500.0,0.00025606,2]
[328464132,1717420238494,-500.0,0.00025606,2]
[328464134,1717420238504,-500.0,0.00025606,2]
[328464136,1717420238513,-500.0,0.00025606,2]
[328464138,1717420238521,-500.0,0.00025606,2]
[328464140,1717420238530,-300.0,0.00025606,2]
[328464141,1717420238539,-500.0,0.00025606,2]
[328464143,1717420238548,-500.0,0.00025606,2]
[328464145,1717420238558,-7.32293886,0.00025606,2]
[328464147,1717420238570,-492.67706114,0.00025606,2]
[328464149,1717420238579,-500.0,0.00025606,2]
[328464151,1717420238589,-1155.05749472,0.00025606,2]
[328464153,1717420238601,-78.24250528,0.00025606,2]
[328464155,1717420238610,-542.24905264,0.00025606,2]
[328464157,1717420238622,-691.05094736,0.00025606,2]
[328464159,1717420238631,-1041.5969235,0.00025606,2]
[328464162,1717420238644,-94.7730765,0.00025606,2]
[328464164,1717420238654,-500.0,0.00025606,2]
[328464165,1717420238663,-500.0,0.00025606,2]
[328464167,1717420238673,-500.0,0.00025606,2]
[328464169,1717420238687,-500.0,0.00025606,2]
[328464171,1717420238697,-613.92,0.00025606,2]
[328464173,1717420238707,-500.0,0.00025606,2]
[328464175,1717420238716,-500.0,0.00025606,2]
[328464177,1717420238727,-500.0,0.00025606,2]
[328464179,1717420238737,-500.0,0.00025606,2]
[328464181,1717420238747,-425.2143031,0.00025606,2]
[328464183,1717420238758,-500.0,0.00025606,2]
[328464185,1717420238769,-391.00944051,0.00025606,2]
[328464187,1717420238778,-616.48216561,0.00025606,2]
[328464189,1717420238788,-477.33980916,0.00025606,2]
[328464191,1717420238797,-500.0,0.00025606,2]
[328464193,1717420238807,-430.64170499,0.00025606,2]
[328464195,1717420238817,-500.0,0.00025606,2]
[328464197,1717420238826,-500.0,0.00025606,2]
[328464199,1717420238835,-500.0,0.00025606,2]
[328464201,1717420238844,-500.0,0.00025606,2]
[328464203,1717420238855,-452.85111305,0.00025606,2]
[328464205,1717420238865,-500.0,0.00025606,2]
[328464207,1717420238874,-594.04953595,0.00025606,2]
[328464209,1717420238883,-500.0,0.00025606,2]
[328464211,1717420238894,-500.0,0.00025606,2]
[328464213,1717420238903,-500.0,0.00025606,2]
[328464215,1717420238913,-500.0,0.00025606,2]
[328464217,1717420238923,-500.0,0.00025606,2]
[328464219,1717420238932,-500.0,0.00025606,2]
[328464221,1717420238941,-500.0,0.00025606,2]
[328464223,1717420238951,-624.95479335,0.00025606,2]
[328464225,1717420238959,-500.0,0.00025606,2]
[328464227,1717420238969,-500.0,0.00025606,2]
[328464229,1717420238979,-500.0,0.00025606,2]
[328464231,1717420238988,-500.0,0.00025606,2]
[328464233,1717420238998,-500.0,0.00025606,2]
[328464235,1717420239007,-500.0,0.00025606,2]
[328464237,1717420239017,-500.0,0.00025606,2]
[328464239,1717420239026,-1233.3,0.00025607,2]
[328464241,1717420239035,-1233.3,0.00025607,2]
[328464243,1717420239046,-1233.3,0.00025607,2]
[328464245,1717420239055,-1233.3,0.00025607,2]
[328464247,1717420239065,-1233.3,0.00025607,2]
[328464249,1717420239075,-1233.3,0.00025607,2]
[328464251,1717420239085,-1233.3,0.00025607,2]
[328464253,1717420239094,-2.36405778,0.00025607,2]
[328464255,1717420239107,-565.90470413,0.00025607,2]
[328464550,1717420242116,-665.03123809,0.00025607,2]
[328464552,1717420242125,-1233.3,0.00025607,2]
[328464555,1717420242134,-1233.3,0.00025607,2]
[328464557,1717420242144,-1233.3,0.00025607,2]
[328464559,1717420242154,-1233.3,0.00025607,2]
[328464561,1717420242163,-1233.3,0.00025607,2]
[328464563,1717420242173,-1233.3,0.00025607,2]
[328464565,1717420242182,-1233.3,0.00025607,2]
[328464567,1717420242191,-500.0,0.00025607,2]
[328464569,1717420242200,-500.0,0.00025607,2]
[328464571,1717420242210,-500.0,0.00025607,2]
[328464573,1717420242219,-479.4933389,0.00025607,2]
[328464575,1717420242231,-20.5066611,0.00025607,2]
[328464577,1717420242240,-290.69879103,0.00025607,2]
[328464579,1717420242252,-209.30120897,0.00025607,2]
[328464581,1717420242262,-500.0,0.00025607,2]
[328464583,1717420242271,-500.0,0.00025607,2]
[328464585,1717420242280,-500.0,0.00025607,2]
[328464587,1717420242290,-500.0,0.00025607,2]
[328464589,1717420242299,-500.0,0.00025607,2]
[328464591,1717420242308,-113.10860386,0.00025607,2]
[328464771,1717420243544,-386.89139614,0.00025607,2]
[328464773,1717420243554,-500.0,0.00025607,2]
[328464788,1717420243680,-500.0,0.00025607,2]
[328464790,1717420243694,-500.0,0.00025607,2]
[328464792,1717420243703,-500.0,0.00025607,2]
[328464794,1717420243712,-500.0,0.00025607,2]
[328464797,1717420243723,-22223.04204261,0.00025607,7]
[328464800,1717420243733,-7406.10857659,0.00025607,7]
[328464802,1717420243742,-204183.55997578,0.00025607,30]
[328464804,1717420243755,-4795.98585771,0.00025607,30]
[328464807,1717420243767,-11758.88622929,0.00025607,30]
[328465024,1717420246368,-6440.83,0.00025597,3]
[328465025,1717420246379,-15665.35544406,0.00025607,30]
[328465028,1717420246843,-1721.4188608,0.00025607,30]
[328465031,1717420246862,-2531.99881507,0.00025607,30]
[328465033,1717420246875,-56767.81114055,0.00025607,30]
[328465086,1717420283867,897.68664681,0.00018,2]
[328465087,1717420287481,2179.22877654,0.00015,2]
[328465088,1717420287502,463.92283701,0.00015,2]
[328465089,1717420287532,3058.20201115,0.00015,2]
[328465090,1717420293505,155.56115003,0.00015,2]
[328465091,1717420348081,154.90705577,0.00015,2]
[328465092,1717420351639,194.9003054,9.999e-05,2]
[328465093,1717420368110,154.90705577,0.00015,2]
[328465094,1717420384097,231.24565998,0.00015,2]
[328465099,1717420575077,1454.38608714,0.0002,10]
[328465109,1717420696072,9579.4310291,9.999e-05,2]
[328465112,1717420885078,1454.38608714,0.0002,10]
[328465113,1717420953033,156.98418007,0.00015,2]
[328465115,1717421153385,212.7243,9.999e-05,2]
[328465116,1717421231610,1454.38608714,0.0002,10]
[328465117,1717421273373,12000.0,0.00028,120]
[328465176,1717421432583,-438.04522402,0.00017999,2]
[328465177,1717421432595,-10093.2551653,0.00017999,2]
[328465178,1717421432605,-3498.03126947,0.00018,2]
[328465179,1717421432615,-162.90768691,0.00019,2]
[328465180,1717421432624,-171.42272,0.00019283,2]
[328465181,1717421432634,-24900.0,0.00019319,2]
[328465182,1717421432644,-167.36965451,0.0002,2]
[328465183,1717421432653,-169.644612,0.00020006,2]
[328465184,1717421432662,-212.7243,0.00021313,2]
[328465185,1717421432671,-500.0,0.00021313,2]
[328465186,1717421432681,-500.0,0.00021313,2]
[328465187,1717421432689,-4231.98482686,0.00021314,2]
[328465188,1717421432699,-500.0,0.00021314,2]
[328465189,1717421432708,-500.0,0.00021314,2]
[328465190,1717421432718,-1089.02,0.00021314,2]
[328465191,1717421432727,-500.0,0.00021314,2]
[328465192,1717421432736,-228.96,0.00021314,2]
[328465193,1717421432745,-510.03,0.00021314,2]
[328465194,1717421432755,-500.0,0.00021314,2]
[328465195,1717421432764,-500.0,0.00021314,2]
[328465196,1717421432774,-166.8994032,0.00021488,2]
[328465197,1717421432783,-421.47,0.00021588,2]
[328465198,1717421432792,-1089.02,0.00021588,2]
[328465199,1717421432802,-500.0,0.00021588,2]
[328465200,1717421432810,-1089.02,0.00021862,2]
[328465201,1717421432820,-450.14,0.00021862,2]
[328465202,1717421432830,-623.92866437,0.00022135,2]
[328465203,1717421432839,-1089.02,0.00022136,2]
[328465204,1717421432848,-1089.02,0.0002241,2]
[328465205,1717421432859,-1089.02,0.00022684,2]
[328465206,1717421432869,-1089.02,0.00022958,2]
[328465207,1717421432878,-1454.38608714,0.00023231,10]
[328465208,1717421432888,-1089.02,0.00023232,2]
[328465209,1717421432897,-166.89940318,0.00023341,2]
[328465210,1717421433045,-1089.02,0.00023506,2]
[328465211,1717421433056,-152.53085282,0.000237,2]
[328465212,1717421433065,-1089.02,0.0002378,2]
[328465213,1717421433080,-1089.02,0.00024053,2]
[328465214,1717421433090,-228.08668634,0.00024325,2]
[328465215,1717421433100,-1089.02,0.00024327,2]
[328465216,1717421433113,-500.0,0.00024503,2]
[328465217,1717421433123,-500.0,0.00024503,2]
[328465218,1717421433132,-500.0,0.00024503,2]
[328465219,1717421433141,-500.0,0.00024503,2]
[328465220,1717421433153,-500.0,0.00024503,2]
[328465221,1717421433163,-60.85949039,0.00024503,2]
[328465222,1717421433176,-439.14050961,0.00024503,2]
[328465223,1717421433185,-500.0,0.00024503,2]
[328465224,1717421433195,-530.9924684,0.00024503,2]
[328465272,1717421438749,-500.0,0.00021313,2]
[328465274,1717421438759,-500.0,0.00021313,2]
[328465276,1717421438769,-379.48,0.00021587,2]
[328465278,1717421438779,-500.0,0.00024502,2]
[328465281,1717421438790,-500.0,0.00024502,2]
[328465283,1717421438799,-500.0,0.00024502,2]
[328465284,1717421438810,-500.0,0.00024502,2]
[328465287,1717421438820,-500.0,0.00024502,2]
[328465288,1717421438830,-500.0,0.00024502,2]
[328465290,1717421438840,-441.31777113,0.00024502,2]
[328465291,1717421438850,-27.3175316,0.00024503,2]
[328465292,1717421438859,-500.0,0.00024503,2]
[328465293,1717421438870,-500.0,0.00024503,2]
[328465294,1717421438879,-500.0,0.00024503,2]
[328465295,1717421438889,-615.67,0.00024503,2]
[328465296,1717421438899,-500.0,0.00024503,2]
[328465297,1717421438908,-500.0,0.00024503,2]
[328465298,1717421438918,-610.13,0.00024503,2]
[328465299,1717421438928,-500.0,0.00024503,2]
[328465300,1717421438938,-500.0,0.00024503,2]
[328465301,1717421438947,-500.0,0.00024503,2]
[328465302,1717421438957,-500.0,0.00024503,2]
[328465303,1717421438966,-500.0,0.00024503,2]
[328465304,1717421438975,-275.41,0.00024503,2]
[328465305,1717421438985,-551.13,0.00024503,2]
[328465306,1717421438995,-580.87,0.00024503,2]
[328465307,1717421439005,-500.0,0.00024503,2]
[328465308,1717421439015,-500.0,0.00024503,2]
[328465310,1717421439024,-500.0,0.00024503,2]
[328465312,1717421439033,-527.57570399,0.00024503,2]
[328465314,1717421439043,-500.0,0.00024503,2]
[328465316,1717421439054,-500.0,0.00024503,2]
[328465318,1717421439064,-500.0,0.00024503,2]
[328465320,1717421439079,-500.0,0.00024503,2]
[328465322,1717421439089,-500.0,0.00024503,2]
[328465324,1717421439099,-500.0,0.00024503,2]
[328465326,1717421439110,-500.0,0.00024503,2]
[328465328,1717421439122,-500.0,0.00024503,2]
[328465330,1717421439132,-500.0,0.00024503,2]
[328465332,1717421439141,-500.0,0.00024503,2]
[328465334,1717421439155,-500.0,0.00024503,2]
[328465336,1717421439166,-500.0,0.00024503,2]
[328465338,1717421439176,-500.0,0.00024503,2]
[328465340,1717421439186,-500.0,0.00024503,2]
[328465342,1717421439195,-500.0,0.00024503,2]
[328465344,1717421439205,-608.67,0.00024503,2]
[328465346,1717421439215,-1089.02,0.00024601,2]
[328465348,1717421439225,-939.7733161,0.00024676,2]
[328465350,1717421439234,-500.0,0.00024776,2]
[328465352,1717421439244,-500.0,0.00024776,2]
[328465354,1717421439254,-227.82,0.00024776,2]
[328465356,1717421439264,-320.63,0.00024776,2]
[328465358,1717421439274,-500.0,0.00024776,2]
[328465360,1717421439283,-170.9,0.00024776,2]
[328465362,1717421439294,-500.0,0.00024776,2]
[328465364,1717421439303,-247.11,0.00024776,2]
[328465366,1717421439313,-500.0,0.00024776,2]
[328465368,1717421439322,-370.28,0.00024776,2]
[328465370,1717421439332,-500.0,0.00024776,2]
[328465372,1717421439341,-258.96,0.00024776,2]
[328465374,1717421439351,-389.19,0.00024776,2]
[328465376,1717421439362,-500.0,0.00024776,2]
[328465378,1717421439372,-500.0,0.00024776,2]
[328465380,1717421439381,-164.14,0.00024776,2]
[328465382,1717421439390,-625.5,0.00024776,2]
[328465384,1717421439400,-1089.02,0.00024875,2]
[328465386,1717421439410,-939.7733161,0.00024926,2]
[328465388,1717421439420,-1000.0,0.00025,9]
[328465390,1717421439431,-2967.49,0.0002504,3]
[328465392,1717421439441,-267.66,0.0002505,2]
[328465394,1717421439451,-500.0,0.0002505,2]
[328465396,1717421439461,-500.0,0.0002505,2]
[328465398,1717421439471,-500.0,0.0002505,2]
[328465400,1717421439482,-500.0,0.0002505,2]
[328465402,1717421439492,-282.3,0.0002505,2]
[328465404,1717421439501,-163.39,0.0002505,2]
[328465406,1717421439511,-500.0,0.0002505,2]
[328465408,1717421439521,-1089.02,0.00025149,2]
[328465410,1717421439531,-45.35236108,0.00025177,2]
[328465412,1717421439544,-894.42095502,0.00025177,2]
[328465414,1717421439553,-166.89940318,0.00025194,2]
[328465416,1717421439562,-335.24,0.00025324,2]
[328465418,1717421439573,-614.63,0.00025324,2]
[328465420,1717421439583,-500.0,0.00025324,2]
[328465422,1717421439593,-500.0,0.00025324,2]
[328465424,1717421439603,-500.0,0.00025324,2]
[328465426,1717421439615,-1089.02,0.00025423,2]
[328465428,1717421439625,-939.7733161,0.00025427,2]
[328465430,1717421439635,-7910.60909773,0.00025467,2]
[328465432,1717421439646,-500.0,0.00025468,2]
[328465434,1717421439655,-500.0,0.00025468,2]